bitfinex/quotes_BTCUSD_20250825
["timestamp","ask_amount","ask_price","bid_price","bid_amount"]
[1756108910172,0.55242362,111690.0,111680.0,0.01805]
[1756108910385,0.95668266,111690.0,111680.0,0.01805]
[1756108910638,0.3648646,111690.0,111680.0,0.01805]
[1756108910802,0.5295446,111690.0,111680.0,0.01805]
[1756108911252,0.3648646,111690.0,111680.0,0.01805]
[1756108911458,0.5295446,111690.0,111680.0,0.01805]
[1756108912073,0.52125598,111690.0,111680.0,0.01805]
[1756108912483,0.52954794,111690.0,111680.0,0.01805]
[1756108912692,1.118156,111690.0,111680.0,0.01805]
[1756108912894,1.121366,111690.0,111680.0,0.01805]
[1756108913729,0.51828196,111690.0,111680.0,0.01805]
[1756108913863,0.52126491,111690.0,111680.0,0.01805]
[1756108914080,0.52657491,111690.0,111680.0,0.01805]
[1756108914493,1.12137539,111690.0,111680.0,0.01805]
[1756108914793,1.12137586,111690.0,111680.0,0.01805]
[1756108915652,1.19025586,111690.0,111680.0,0.01805]
[1756108916076,1.47365669,111690.0,111680.0,0.01805]
[1756108916499,1.29458963,111690.0,111680.0,0.01805]
[1756108917129,0.70808157,111690.0,111680.0,0.01805]
[1756108917337,1.29458963,111690.0,111680.0,0.01805]
[1756108917805,0.0209,111670.0,111660.0,0.07015163]
[1756108917992,0.2020852,111670.0,111660.0,0.07731645]
[1756108919083,0.2020852,111670.0,111660.0,0.08931645]
[1756108919302,0.79390326,111670.0,111660.0,0.08931645]
[1756108920410,0.79390326,111670.0,111660.0,0.01219466]
[1756108920644,0.2073952,111670.0,111660.0,0.01219466]
[1756108920858,0.79390326,111670.0,111660.0,0.01219466]
[1756108921287,0.79390326,111670.0,111660.0,0.00019466]
[1756108921513,0.0374852,111670.0,111660.0,0.00019466]
[1756108921772,0.2022652,111670.0,111660.0,0.00119466]
[1756108922682,0.03781203,111670.0,111660.0,0.08807941]
[1756108922884,0.20229203,111670.0,111660.0,0.22709262]
[1756108923035,0.03781203,111670.0,111660.0,0.22709262]
[1756108923258,0.03781203,111670.0,111660.0,0.81360068]
[1756108924410,0.08113305,111710.0,111660.0,0.7446891]
[1756108924528,0.08113305,111710.0,111690.0,0.58650806]
[1756108924529,0.00830772,111710.0,111690.0,0.58650806]
[1756108924737,0.00830772,111710.0,111700.0,0.67786907]
[1756108924890,0.00830772,111710.0,111700.0,0.67339281]
[1756108925113,0.07209,111750.0,111700.0,0.67339281]
[1756108925344,0.1644,111740.0,111710.0,0.67786867]
[1756108925580,0.16761,111740.0,111710.0,0.12777651]
[1756108925992,0.16769639,111740.0,111710.0,0.08688475]
[1756108926437,0.00321,111730.0,111710.0,0.08688475]
[1756108926652,0.16448639,111740.0,111710.0,0.08688475]
[1756108926653,0.16769639,111740.0,111710.0,0.08688475]
[1756108926870,0.00321,111730.0,111710.0,0.12997323]
[1756108927086,0.00321,111720.0,111710.0,0.08688475]
[1756108927712,0.58971806,111730.0,111710.0,0.08688475]
[1756108928169,0.00321,111730.0,111710.0,0.08788475]
[1756108928389,0.58971806,111730.0,111710.0,0.08888475]
[1756108928813,0.58971806,111730.0,111710.0,0.08788475]
[1756108929031,0.00321,111730.0,111710.0,0.09667323]
[1756108929239,0.00321,111730.0,111710.0,0.10867323]
[1756108930122,0.00321,111730.0,111710.0,0.10872323]
[1756108931010,0.16769639,111740.0,111710.0,0.11096116]
[1756108931189,0.00321,111730.0,111710.0,0.10872323]
[1756108931593,0.75602806,111720.0,111710.0,0.02183848]
[1756108931789,0.75602806,111720.0,111710.0,0.01305]
[1756108932026,0.75602806,111720.0,111710.0,0.01205]
[1756108932958,0.16952,111720.0,111710.0,0.01205]
[1756108933325,0.75602806,111720.0,111710.0,0.01205]
[1756108933540,1.09602806,111720.0,111710.0,0.01205]
[1756108933742,1.16486806,111720.0,111710.0,0.01005]
[1756108934318,1.16486806,111720.0,111710.0,0.01205]
[1756108934566,0.57836,111720.0,111710.0,0.01205]
[1756108934775,1.16486806,111720.0,111710.0,0.01205]
[1756108934990,0.41412,111720.0,111710.0,0.01005]
[1756108935202,0.40884,111720.0,111710.0,0.01005]
[1756108935415,0.573,111720.0,111710.0,0.01105]
[1756108936020,0.57507,111720.0,111710.0,0.01105]
[1756108936170,0.16412,111720.0,111710.0,0.09793475]
[1756108936393,0.16412,111720.0,111710.0,0.10996615]
[1756108936590,0.99864445,111740.0,111710.0,0.10996615]
[1756108936789,0.16412,111730.0,111710.0,0.10896615]
[1756108937280,0.50412,111730.0,111720.0,0.08688475]
[1756108937723,0.34,111730.0,111720.0,0.08688475]
[1756108937957,0.50412,111730.0,111720.0,0.09800516]
[1756108938146,0.50619,111730.0,111720.0,0.09800516]
[1756108938359,0.5094,111730.0,111720.0,0.09800516]
[1756108938797,0.5094,111730.0,111720.0,0.09900516]
[1756108939467,1.09590806,111730.0,111720.0,0.001]
[1756108939931,0.93178806,111730.0,111720.0,0.001]
[1756108940137,0.34528,111730.0,111720.0,0.001]
[1756108940335,0.23296639,111740.0,111720.0,0.08788475]
[1756108940555,0.08547714,111740.0,111730.0,0.08688475]
[1756108940736,0.18067714,111740.0,111730.0,0.09567323]
[1756108941224,0.18067714,111740.0,111730.0,0.09791076]
[1756108941391,0.18067714,111740.0,111730.0,0.09567323]
[1756108941818,0.18063714,111740.0,111730.0,0.09567323]
[1756108942061,0.16408639,111740.0,111730.0,0.09867323]
[1756108942288,0.16936639,111740.0,111730.0,0.09867323]
[1756108942504,0.16408639,111740.0,111730.0,0.09867323]
[1756108942753,0.01663723,111740.0,111730.0,0.09867323]
[1756108942986,0.18063723,111740.0,111730.0,0.09872323]
[1756108943661,0.18063723,111740.0,111730.0,0.10072323]
[1756108943892,0.18591723,111740.0,111730.0,0.10072323]
[1756108944345,0.75587445,111740.0,111730.0,0.10072323]
[1756108944539,0.75587445,111740.0,111730.0,0.01383848]
[1756108944846,0.50936639,111740.0,111730.0,0.00505]
[1756108945004,1.09587445,111740.0,111730.0,0.00505]
[1756108945241,1.09587445,111740.0,111730.0,0.00305]
[1756108945473,1.09587445,111740.0,111730.0,5e-05]
[1756108945934,0.93187445,111740.0,111730.0,5e-05]
[1756108946149,1.09579445,111740.0,111730.0,5e-05]
[1756108946728,1.09579445,111740.0,111730.0,0.00305]
[1756108947140,0.34,111730.0,111720.0,5e-05]
[1756108947398,1.00062806,111730.0,111720.0,5e-05]
[1756108947574,1.01718424,111730.0,111720.0,5e-05]
[1756108947782,1.19618719,111730.0,111720.0,5e-05]
[1756108948181,1.01718424,111730.0,111720.0,5e-05]
[1756108948364,1.19618719,111730.0,111720.0,5e-05]
[1756108948570,1.19718719,111730.0,111720.0,5e-05]
[1756108948786,1.01818424,111730.0,111720.0,5e-05]
[1756108949007,1.19718719,111730.0,111720.0,5e-05]
[1756108949430,1.20547383,111730.0,111720.0,5e-05]
[1756108949879,1.22292285,111730.0,111720.0,5e-05]
[1756108950403,1.38676285,111730.0,111720.0,5e-05]
[1756108951166,1.0439199,111730.0,111720.0,5e-05]
[1756108951386,1.0439199,111730.0,111720.0,0.00013]
[1756108951387,0.09167618,111730.0,111720.0,0.00013]
[1756108951591,0.18135618,111730.0,111720.0,0.00013]
[1756108951808,0.18138697,111730.0,111720.0,0.08701475]
[1756108952135,0.18138697,111730.0,111720.0,0.09716881]
[1756108952334,0.01758697,111730.0,111720.0,0.09716881]
[1756108952556,0.18134697,111730.0,111720.0,0.09716881]
[1756108952713,0.01760032,111730.0,111720.0,0.09716881]
[1756108952915,0.18136032,111730.0,111720.0,0.09716881]
[1756108953125,0.18036032,111730.0,111720.0,0.09716881]
[1756108953327,0.18036032,111730.0,111720.0,0.09916881]
[1756108953763,0.01660032,111730.0,111720.0,0.09916881]
[1756108954169,0.35671227,111740.0,111720.0,0.09921881]
[1756108954396,0.52878522,111740.0,111730.0,0.08688475]
[1756108954594,0.18874522,111740.0,111730.0,0.09912416]
[1756108954810,0.18874522,111740.0,111730.0,0.09688663]
[1756108955066,0.02502522,111740.0,111730.0,0.09912416]
[1756108955274,0.01671291,111740.0,111730.0,0.09917416]
[1756108955480,0.01671291,111740.0,111730.0,0.09912416]
[1756108955706,0.01878291,111740.0,111730.0,0.09680663]
[1756108955929,0.60850097,111740.0,111730.0,0.09680663]
[1756108956363,0.40728381,111740.0,111730.0,0.09877663]
[1756108956570,0.41866851,111740.0,111730.0,0.09877663]
[1756108956773,0.0103847,111740.0,111730.0,0.09877663]
[1756108956983,0.0083147,111740.0,111730.0,0.09877663]
[1756108957185,0.0103847,111740.0,111730.0,0.09977663]
[1756108957393,0.0103847,111740.0,111730.0,0.09680663]
[1756108957598,0.0103847,111740.0,111730.0,0.09877663]
[1756108957803,0.0103847,111740.0,111730.0,0.09977663]
[1756108958003,0.0103847,111740.0,111730.0,0.09780663]
[1756108958272,0.0103847,111740.0,111730.0,0.09880663]
[1756108958978,0.0103847,111740.0,111730.0,0.10077663]
[1756108959391,0.0103847,111740.0,111730.0,0.09880663]
[1756108959392,0.0135647,111740.0,111730.0,0.09880663]
[1756108959608,0.60007276,111740.0,111730.0,0.002]
[1756108959819,1.18789969,111740.0,111730.0,0.002]
[1756108960043,1.21854871,111740.0,111730.0,0.002]
[1756108960283,1.21854871,111740.0,111730.0,0.012]
[1756108960493,1.30543346,111740.0,111730.0,0.012]
[1756108960893,1.39230311,111740.0,111730.0,0.011]
[1756108961121,1.30543346,111740.0,111730.0,0.01]
[1756108961528,1.29711876,111740.0,111730.0,0.01]
[1756108961747,1.46903113,111740.0,111730.0,0.01]
[1756108961966,1.47003113,111740.0,111730.0,0.01]
[1756108962187,1.46999112,111740.0,111730.0,0.01]
[1756108963030,1.30643112,111740.0,111730.0,0.01]
[1756108963235,1.29000419,111740.0,111730.0,0.01]
[1756108963583,1.47099112,111740.0,111730.0,0.01]
[1756108964005,1.47199112,111740.0,111730.0,0.01]
[1756108964277,1.12944419,111740.0,111730.0,0.01]
[1756108964406,1.29300419,111740.0,111730.0,0.01]
[1756108964617,1.47199112,111740.0,111730.0,0.01]
[1756108966048,1.47198956,111740.0,111730.0,0.01]
[1756108968286,1.48861037,111740.0,111730.0,0.01]
[1756108969360,1.48860976,111740.0,111730.0,0.01]
[1756108969891,1.50261638,111740.0,111730.0,0.01]
[1756108971532,1.49430377,111740.0,111730.0,0.01]
[1756108971761,1.50261296,111740.0,111730.0,0.01]
[1756108972021,1.53215944,111740.0,111730.0,0.01]
[1756108972214,1.39273875,111740.0,111730.0,0.01005]
[1756108972417,0.22536799,111720.0,111710.0,0.01005]
[1756108972641,1.08071919,111720.0,111710.0,0.01005]
[1756108972864,1.08389919,111720.0,111710.0,0.01005]
[1756108973286,0.74152022,111720.0,111710.0,0.01005]
[1756108973500,0.90488022,111720.0,111710.0,0.01005]
[1756108973704,0.68696226,111720.0,111710.0,0.01005]
[1756108974088,0.68696226,111720.0,111710.0,0.01201]
[1756108974295,0.86598123,111720.0,111710.0,0.01201]
[1756108974498,0.68696226,111720.0,111710.0,0.01105]
[1756108975080,0.86598123,111720.0,111710.0,0.01301]
[1756108975428,0.86598123,111720.0,111710.0,0.01205]
[1756108975638,0.73132328,111720.0,111710.0,0.01205]
[1756108976074,0.73132328,111720.0,111710.0,0.01401]
[1756108976289,0.91034225,111720.0,111710.0,0.01205]
[1756108976522,0.73132328,111720.0,111710.0,0.01205]
[1756108976724,0.73132328,111720.0,111710.0,0.01716]
[1756108976725,0.71185426,111720.0,111710.0,0.01716]
[1756108977623,0.190232,111720.0,111710.0,0.01716]
[1756108977846,0.77674006,111720.0,111710.0,0.01716]
[1756108978068,0.95773903,111720.0,111710.0,0.01205]
[1756108978280,0.96023903,111720.0,111710.0,0.01205]
[1756108978719,0.61540006,111720.0,111710.0,0.01205]
[1756108978978,0.95765903,111720.0,111710.0,0.01205]
[1756108979445,0.77864006,111720.0,111710.0,0.01205]
[1756108979578,0.61540006,111720.0,111710.0,0.01401]
[1756108979805,0.95765903,111720.0,111710.0,0.01205]
[1756108980009,1.29765903,111720.0,111710.0,0.01205]
[1756108980235,2.03316408,111720.0,111710.0,0.01205]
[1756108980436,1.86992408,111720.0,111710.0,0.01205]
[1756108980656,1.42676968,111720.0,111710.0,0.01205]
[1756108980857,1.99926916,111720.0,111710.0,0.01205]
[1756108981272,1.99926916,111720.0,111710.0,0.01005]
[1756108981686,2.00226916,111720.0,111710.0,0.01005]
[1756108981897,2.00026916,111720.0,111710.0,0.01005]
[1756108982098,1.83706916,111720.0,111710.0,0.01005]
[1756108982310,2.00326916,111720.0,111710.0,0.01005]
[1756108982734,2.00026916,111720.0,111710.0,0.01005]
[1756108982931,1.18227668,111720.0,111710.0,0.01005]
[1756108983147,1.12488836,111720.0,111710.0,0.01516]
[1756108983355,1.11858006,111720.0,111710.0,0.01516]
[1756108983766,1.29759903,111720.0,111710.0,0.01516]
[1756108984186,1.31504805,111720.0,111710.0,0.01516]
[1756108984389,0.95842006,111720.0,111710.0,0.01516]
[1756108984599,0.031912,111720.0,111710.0,0.01516]
[1756108984819,0.028912,111720.0,111710.0,0.01516]
[1756108985029,0.75162806,111720.0,111710.0,0.01516]
[1756108985432,0.75162806,111720.0,111710.0,0.02378616]
[1756108985674,0.16512,111720.0,111710.0,0.02378616]
[1756108985905,0.75162806,111720.0,111710.0,0.02678616]
[1756108986134,0.75162806,111720.0,111710.0,0.02378616]
[1756108986355,0.76624266,111720.0,111710.0,0.01516]
[1756108986587,0.76624266,111720.0,111710.0,0.01916]
[1756108987628,0.76624266,111720.0,111710.0,0.02016]
[1756108988209,0.94526163,111720.0,111710.0,0.02016]
[1756108988428,0.94974163,111720.0,111710.0,0.01505]
[1756108988801,0.94922242,111720.0,111710.0,0.01505]
[1756108989011,1.29753449,111720.0,111710.0,0.01505]
[1756108989687,1.27260782,111720.0,111710.0,0.01505]
[1756108989902,1.29505039,111720.0,111710.0,0.01505]
[1756108990123,1.29755039,111720.0,111710.0,0.01505]
[1756108990583,1.29505039,111720.0,111710.0,0.01505]
[1756108990798,1.29505092,111720.0,111710.0,0.01505]
[1756108993663,1.31010092,111720.0,111710.0,0.01505]
[1756108995888,1.39698567,111720.0,111710.0,0.01505]
[1756108996103,1.39949567,111720.0,111710.0,0.01505]
[1756108996555,1.446999,111720.0,111710.0,0.01505]
[1756108996776,1.32833391,111720.0,111710.0,0.01405]
[1756108997192,1.32933391,111720.0,111710.0,0.01405]
[1756108997669,1.32833391,111720.0,111710.0,0.01005]
[1756108998115,1.32933391,111720.0,111710.0,0.01005]
[1756108998360,1.34678293,111720.0,111710.0,0.01005]
[1756108999018,1.34427293,111720.0,111710.0,0.01005]
[1756108999706,1.34679223,111720.0,111710.0,0.01005]
[1756109000204,1.92498284,111720.0,111710.0,0.01005]
[1756109000434,1.34679222,111720.0,111710.0,0.01005]
[1756109001535,2.4198861,111720.0,111710.0,0.01005]
[1756109001765,2.42612474,111720.0,111710.0,0.01005]
[1756109002007,2.38794007,111720.0,111710.0,0.01005]
[1756109002439,2.40710263,111720.0,111710.0,0.01005]
[1756109004209,2.38794007,111720.0,111710.0,0.01005]
[1756109004436,2.40709793,111720.0,111710.0,0.01005]
[1756109004697,2.36080758,111720.0,111710.0,1e-08]
[1756109004930,0.51905102,111700.0,111690.0,0.00236]
[1756109005146,2.16086193,111700.0,111690.0,0.00236]
[1756109005362,2.24979158,111700.0,111690.0,0.00236]
[1756109005581,2.24597294,111700.0,111690.0,0.00236]
[1756109005807,2.17934483,111700.0,111690.0,0.00236]
[1756109006477,2.17934483,111700.0,111690.0,0.00244639]
[1756109006722,2.18034483,111700.0,111690.0,0.00244639]
[1756109008067,2.18030483,111700.0,111690.0,0.00244639]
[1756109008279,2.27076348,111700.0,111690.0,0.00244639]
[1756109008750,2.27071292,111700.0,111690.0,0.00244639]
[1756109009427,2.27067603,111700.0,111690.0,0.00244639]
[1756109009855,2.18376638,111700.0,111690.0,0.00244639]
[1756109010071,2.22089475,111700.0,111690.0,0.00244639]
[1756109010317,2.21467594,111700.0,111690.0,0.00244639]
[1756109010562,2.22331334,111700.0,111690.0,0.00244639]
[1756109011068,1.06774624,111700.0,111690.0,0.00244639]
[1756109011296,2.17812236,111700.0,111690.0,0.00244639]
[1756109011522,2.33834236,111700.0,111690.0,0.00244639]
[1756109012054,1.02968528,111700.0,111690.0,0.00750639]
[1756109012301,0.58383741,111700.0,111690.0,0.00750639]
[1756109012514,0.84741231,111700.0,111690.0,0.00750639]
[1756109012736,1.0264408,111700.0,111690.0,0.00750639]
[1756109012947,1.18738978,111700.0,111690.0,0.00750639]
[1756109013163,1.3664408,111700.0,111690.0,0.00750639]
[1756109014359,0.43828172,111700.0,111690.0,0.00750639]
[1756109014571,0.84734978,111700.0,111690.0,0.00750639]
[1756109015015,1.3664008,111700.0,111690.0,0.00210211]
[1756109015202,1.18734978,111700.0,111690.0,0.00423211]
[1756109015674,1.18734978,111700.0,111690.0,0.00823211]
[1756109015888,1.18734978,111700.0,111690.0,0.00323211]
[1756109016114,0.60084172,111700.0,111690.0,0.00323211]
[1756109016366,1.18734978,111700.0,111690.0,0.00423211]
[1756109016593,0.43828172,111700.0,111690.0,0.00423211]
[1756109016818,0.18741272,111700.0,111690.0,0.10111686]
[1756109017034,0.18741272,111700.0,111690.0,0.1114524]
[1756109017035,0.02485272,111700.0,111690.0,0.1114524]
[1756109017250,0.02485272,111700.0,111690.0,0.11569073]
[1756109017732,0.01656848,111700.0,111690.0,0.11369073]
[1756109017942,0.01656848,111700.0,111690.0,0.11269073]
[1756109018144,0.01656848,111700.0,111690.0,0.1184524]
[1756109018353,0.01656848,111700.0,111690.0,0.12069073]
[1756109018535,0.01656848,111700.0,111690.0,0.12292906]
[1756109018744,0.01656848,111700.0,111690.0,0.12069073]
[1756109018958,0.06888,111720.0,111690.0,0.12069073]
[1756109019180,0.59623618,111720.0,111700.0,0.08981475]
[1756109019399,0.59623618,111720.0,111710.0,0.00488]
[1756109019605,0.59623618,111720.0,111710.0,0.09176475]
[1756109020042,1.18274424,111720.0,111710.0,0.09176475]
[1756109021131,1.18274424,111720.0,111710.0,0.09181475]
[1756109021428,1.18482424,111720.0,111710.0,0.003]
[1756109021649,1.37316196,111720.0,111710.0,0.00105]
[1756109021858,1.39226524,111720.0,111710.0,0.00105]
[1756109022517,1.21014627,111720.0,111710.0,0.005]
[1756109022961,1.21014627,111720.0,111710.0,0.002]
[1756109023608,1.40226524,111720.0,111710.0,5e-05]
[1756109024265,1.42517658,111720.0,111710.0,5e-05]
[1756109024479,1.42517658,111720.0,111710.0,0.00105]
[1756109024480,1.48914999,111720.0,111710.0,0.00105]
[1756109024910,1.48127698,111720.0,111710.0,0.00105]
[1756109025153,2.06778504,111720.0,111710.0,0.00105]
[1756109025393,2.15466225,111720.0,111710.0,5e-05]
[1756109025859,2.1737766,111720.0,111710.0,5e-05]
[1756109026108,7.13896297,111720.0,111710.0,5e-05]
[1756109026537,7.14096297,111720.0,111710.0,5e-05]
[1756109026959,7.14196297,111720.0,111710.0,5e-05]
[1756109027398,7.14096297,111720.0,111710.0,5e-05]
[1756109027823,0.95140806,111670.0,111660.0,0.00298]
[1756109028036,1.18260806,111670.0,111660.0,0.00493]
[1756109028257,1.36170719,111670.0,111660.0,0.00493]
[1756109028475,1.36170719,111670.0,111660.0,5e-05]
[1756109028476,1.37582633,111670.0,111660.0,5e-05]
[1756109028698,1.34272633,111670.0,111660.0,0.002]
[1756109028957,1.34272633,111670.0,111660.0,5e-05]
[1756109029193,1.55362724,111670.0,111660.0,0.00519466]
[1756109029624,1.55362697,111670.0,111660.0,0.00519466]
[1756109029858,1.48077285,111670.0,111660.0,0.00519466]
[1756109030077,1.48077285,111670.0,111660.0,0.00019466]
[1756109030307,1.46332383,111670.0,111660.0,0.00419466]
[1756109030752,1.46332383,111670.0,111660.0,0.00424466]
[1756109030952,1.46751783,111670.0,111660.0,0.00024466]
[1756109031166,1.50885993,111670.0,111660.0,0.00124466]
[1756109031802,1.53038206,111670.0,111660.0,0.00124466]
[1756109032012,1.53038367,111670.0,111660.0,0.00324466]
[1756109032434,1.51636814,111670.0,111660.0,0.00324466]
[1756109032859,1.96476814,111670.0,111660.0,0.00324466]
[1756109033959,1.98221716,111670.0,111660.0,0.00324466]
[1756109034166,1.98843735,111670.0,111660.0,0.00324466]
[1756109034387,1.53381716,111670.0,111660.0,0.00324466]
[1756109034810,1.37149716,111670.0,111660.0,0.00324466]
[1756109035018,1.52051197,111670.0,111660.0,0.00324466]
[1756109035252,1.52048887,111670.0,111660.0,0.00324466]
[1756109038527,1.52047517,111670.0,111660.0,0.00324466]
[1756109040355,1.35823517,111670.0,111660.0,0.00324466]
[1756109040561,1.60726482,111670.0,111660.0,0.00324466]
[1756109042673,1.51729517,111670.0,111660.0,0.00519466]
[1756109042925,1.52039517,111670.0,111660.0,0.00324466]
[1756109043355,1.52039517,111670.0,111660.0,0.00329466]
[1756109043897,1.52037305,111670.0,111660.0,0.00329466]
[1756109044735,1.52033305,111670.0,111660.0,0.00329466]
[1756109044934,1.6072027,111670.0,111660.0,0.00329466]
[1756109045131,1.50846746,111670.0,111660.0,0.00329466]
[1756109046255,2.09497552,111670.0,111660.0,0.00329466]
[1756109046413,7.06520126,111670.0,111660.0,0.00329466]
[1756109046641,6.90308126,111670.0,111660.0,0.00329466]
[1756109046891,7.06516126,111670.0,111660.0,0.00329466]
[1756109047090,6.98166576,111670.0,111660.0,0.00329466]
[1756109047293,7.15202162,111670.0,111660.0,0.00029466]
[1756109047480,0.73656419,111660.0,111650.0,5e-05]
[1756109047703,7.00150585,111660.0,111650.0,5e-05]
[1756109047946,2.28341285,111660.0,111650.0,5e-05]
[1756109048171,7.09768133,111660.0,111650.0,5e-05]
[1756109048407,7.13076381,111660.0,111650.0,1e-08]
[1756109049306,0.73658023,111650.0,111640.0,5e-05]
[1756109049516,1.20567136,111630.0,111620.0,0.0101]
[1756109049735,1.3882722,111630.0,111620.0,0.0101]
[1756109049964,1.5503122,111630.0,111620.0,0.0101]
[1756109050181,1.5635522,111630.0,111620.0,0.0101]
[1756109050404,1.57757285,111630.0,111620.0,0.0101]
[1756109050625,1.6644425,111630.0,111620.0,0.0101]
[1756109050843,1.6644425,111630.0,111620.0,0.01058223]
[1756109051272,1.65042185,111630.0,111620.0,0.01058223]
[1756109051979,1.5635122,111630.0,111620.0,0.01058223]
[1756109052432,1.47581122,111630.0,111620.0,0.01264223]
[1756109052641,0.88930316,111630.0,111620.0,0.01579223]
[1756109052856,1.51842347,111630.0,111620.0,0.01058223]
[1756109053074,1.60843312,111630.0,111620.0,0.01058223]
[1756109053282,1.56783087,111630.0,111620.0,0.01058223]
[1756109054365,1.66783087,111630.0,111620.0,0.01058223]
[1756109055046,2.25433893,111630.0,111620.0,0.01058223]
[1756109055269,2.27337669,111630.0,111620.0,0.01058223]
[1756109055532,7.1385455,111630.0,111620.0,0.01058223]
[1756109055753,7.1385455,111630.0,111620.0,0.00160352]
[1756109055982,7.16244394,111630.0,111620.0,0.00160352]
[1756109056209,5.96552938,111630.0,111620.0,0.00048223]
[1756109056451,5.98942782,111630.0,111620.0,0.00048223]
[1756109056715,0.63664443,111610.0,111600.0,0.00045]
[1756109056946,0.99915678,111610.0,111600.0,0.00049812]
[1756109057174,1.02605685,111610.0,111600.0,0.00049812]
[1756109057402,1.94328744,111610.0,111600.0,0.00255812]
[1756109057640,1.94328744,111610.0,111600.0,0.00570812]
[1756109057641,0.82430667,111610.0,111600.0,0.00570812]
[1756109057900,1.41080867,111610.0,111600.0,0.00570812]
[1756109058114,2.00246673,111610.0,111600.0,0.00049812]
[1756109058339,2.1262268,111610.0,111600.0,0.00049812]
[1756109058562,6.9595226,111610.0,111600.0,0.00049812]
[1756109058803,6.93676253,111610.0,111600.0,0.00049812]
[1756109059027,6.93676253,111610.0,111600.0,0.00149812]
[1756109059285,6.93676253,111610.0,111600.0,0.00154812]
[1756109059505,7.0605226,111610.0,111600.0,0.00154812]
[1756109059957,7.0605226,111610.0,111590.0,0.0004]
[1756109059958,1.83343667,111600.0,111590.0,0.0004]
[1756109060178,1.83343667,111600.0,111590.0,0.0005447]
[1756109060179,7.20150016,111600.0,111590.0,0.0005447]
[1756109060401,7.20464016,111600.0,111590.0,0.0005447]
[1756109060621,0.51922752,111590.0,111580.0,0.00045]
[1756109060834,6.12160245,111590.0,111580.0,0.00251]
[1756109061048,1.39843945,111590.0,111580.0,0.00566]
[1756109061273,1.41588847,111590.0,111580.0,0.00566]
[1756109061502,1.0381789,111590.0,111580.0,0.00566]
[1756109061726,0.0641837,111590.0,111580.0,0.00566]
[1756109061943,0.05592167,111590.0,111580.0,0.00566]
[1756109062152,0.21792167,111590.0,111580.0,0.00566]
[1756109062366,0.80442973,111590.0,111580.0,0.00571]
[1756109062590,0.39592167,111590.0,111580.0,0.00571]
[1756109062816,0.01652406,111590.0,111580.0,0.09459475]
[1756109063052,0.1632,111590.0,111580.0,0.10709923]
[1756109063274,0.76523012,111590.0,111580.0,0.00571]
[1756109063708,0.94545764,111590.0,111580.0,0.01271]
[1756109063946,1.29279806,111590.0,111580.0,0.00871]
[1756109064383,1.38068281,111590.0,111580.0,0.01571]
[1756109064639,1.46755246,111590.0,111580.0,0.01256]
[1756109064883,1.53100647,111590.0,111580.0,0.0075]
[1756109065111,6.35219947,111590.0,111580.0,0.0075]
[1756109065343,6.37549164,111590.0,111580.0,0.0105]
[1756109065559,6.37561164,111590.0,111580.0,0.0105]
[1756109065774,6.36000958,111590.0,111580.0,0.0005]
[1756109065987,6.37503467,111590.0,111580.0,0.0045]
[1756109066207,6.37503467,111590.0,111580.0,0.0055]
[1756109066436,6.36577425,111590.0,111580.0,0.0015]
[1756109066647,6.37601809,111590.0,111580.0,0.0005]
[1756109066856,6.37801809,111590.0,111580.0,0.0005]
[1756109067067,6.12874844,111590.0,111580.0,0.0005]
[1756109067281,6.29110844,111590.0,111580.0,0.0005]
[1756109067497,6.29110725,111590.0,111580.0,0.0005]
[1756109067732,1.56380993,111590.0,111580.0,0.0005]
[1756109067960,1.44164914,111590.0,111580.0,0.00256]
[1756109068200,1.43763914,111590.0,111580.0,0.00256]
[1756109068409,1.52851879,111590.0,111580.0,0.00256]
[1756109068828,1.54551641,111590.0,111580.0,0.0005]
[1756109069059,1.54351641,111590.0,111580.0,0.0005]
[1756109069273,1.54351641,111590.0,111580.0,0.0015]
[1756109069274,1.54665641,111590.0,111580.0,0.0015]
[1756109069461,1.54351641,111590.0,111580.0,0.00356]
[1756109069716,1.45467676,111590.0,111580.0,0.00356]
[1756109069928,1.45571676,111590.0,111580.0,0.00971]
[1756109070371,1.44168931,111590.0,111580.0,0.00656]
[1756109070590,1.22597515,111590.0,111580.0,0.00971]
[1756109070815,1.40520267,111590.0,111580.0,0.00971]
[1756109071450,0.63946709,111590.0,111580.0,0.00971]
[1756109071673,0.97831792,111590.0,111580.0,0.00971]
[1756109071885,1.02597577,111590.0,111580.0,0.00971]
[1756109072109,1.36597577,111590.0,111580.0,0.00971]
[1756109073105,1.37568577,111590.0,111580.0,0.00971]
[1756109073336,1.46274052,111590.0,111580.0,0.00656]
[1756109073541,1.48018954,111590.0,111580.0,0.0045]
[1756109073751,1.49920605,111590.0,111580.0,0.00656]
[1756109073964,1.43236169,111590.0,111580.0,0.00971]
[1756109074388,1.43224169,111590.0,111580.0,0.00656]
[1756109074653,1.43552169,111590.0,111580.0,0.0045]
[1756109075067,1.53552169,111590.0,111580.0,0.0045]
[1756109075286,1.62239134,111590.0,111580.0,0.0045]
[1756109075496,1.64761623,111590.0,111580.0,0.0045]
[1756109076117,1.6713763,111590.0,111580.0,0.0045]
[1756109076324,1.67140152,111590.0,111580.0,0.0045]
[1756109076538,1.65237416,111590.0,111580.0,0.0045]
[1756109076750,6.37356716,111590.0,111580.0,0.0045]
[1756109077197,6.39010427,111590.0,111580.0,0.0045]
[1756109077402,6.43296243,111590.0,111580.0,0.0045]
[1756109078158,6.40920236,111590.0,111580.0,0.0045]
[1756109078879,1.68780936,111590.0,111580.0,0.0045]
[1756109079562,1.68781987,111590.0,111580.0,0.0045]
[1756109080002,1.48280171,111590.0,111580.0,0.0045]
[1756109080227,1.68791723,111590.0,111580.0,0.0045]
[1756109080452,6.48995478,111590.0,111580.0,0.0045]
[1756109080667,6.54077856,111590.0,111580.0,0.0045]
[1756109080893,0.63669261,111580.0,111570.0,0.00045]
[1756109081082,7.16136092,111580.0,111570.0,0.00045]
[1756109081297,7.18520652,111580.0,111570.0,0.00045]
[1756109081510,7.27958652,111580.0,111570.0,0.00045]
[1756109081729,7.18520652,111580.0,111570.0,0.00045]
[1756109081945,7.3169533,111580.0,111570.0,0.00045]
[1756109082168,1.80972479,111570.0,111560.0,0.0004]
[1756109082462,6.94967517,111570.0,111560.0,0.0004]
[1756109082673,6.97352077,111570.0,111560.0,0.0004]
[1756109082903,1.80974086,111560.0,111550.0,0.003]
[1756109083123,6.83203285,111560.0,111550.0,0.00314422]
[1756109083347,0.61929179,111550.0,111540.0,0.00045]
[1756109083573,6.80838891,111550.0,111540.0,0.00045]
[1756109083786,2.131545,111550.0,111540.0,0.00045]